[Event "Charlotte IM-B MLK 2022"]
[Site "Charlotte"]
[Date "2022.01.14"]
[Round "1.1"]
[White "Wu, Rochelle"]
[Black "Lima Martinez, Alejandro"]
[Result "1-0"]
[ECO "A58"]
[WhiteElo "2176"]
[BlackElo "2078"]
[Annotator "NA"]
[PlyCount "59"]
[EventDate "2022.01.13"]
[EventType "tourn"]
[EventCountry "USA"]
[SourceTitle "playchess.com"]
[Source "ChessBase"]
[SourceQuality "1"]
[TimeControl "5400+30"]

1. d4 {[%emt 0:00:25]} Nf6 {[%emt 0:00:15]} 2. c4 {[%emt 0:00:08]} c5 {[%emt 0:00:21]} 3. d5 {[%emt 0:00:09]} b5 {[%emt 0:00:13]} 4. cxb5 {[%emt 0:00:12]} a6 {[%emt 0:00:17]} 5. bxa6 {[%emt 0:00:07]} g6 {[%emt 0:00:12]} 6. Nc3 {[%emt 0:00:08]} Qa5 {[%emt 0:00:07]} 7. a7 {[%emt 0:00:50]} Na6 {[%emt 0:00:11]} 8. Bd2 {[%emt 0:05:03]} Nb4 {[%emt 0:12:41]} 9. a3 {[%emt 0:06:38]} Qxa7 {[%emt 0:06:31]} 10. e4 {[%emt 0:04:03]} Na6 {[%emt 0:24:06]} 11. e5 {[%emt 0:01:41]} Ng8 {[%emt 0:00:15]} 12. Bc4 {[%emt 0:15:15]} Bg7 {[%emt 0:08:20]} 13. Qe2 {[%emt 0:02:59]} Nh6 {[%emt 0:04:09]} 14. Nf3 {[%emt 0:03:12]} O-O {[%emt 0:01:21]} 15. O-O {[%emt 0:00:15]} Nf5 {[%emt 0:09:12]} 16. Nb5 {[%emt 0:01:22]} Qb6 {[%emt 0:01:10]} 17. Bc3 {[%emt 0:00:18]} Nc7 {[%emt 0:01:40]} 18. Nxc7 {[%emt 0:00:08]} Qxc7 {[%emt 0:00:03]} 19. Rac1 {[%emt 0:02:54]} Qb6 {[%emt 0:02:30]} 20. Rfd1 {[%emt 0:04:25]} h5 {[%emt 0:01:15]} 21. Bd3 {[%emt 0:10:22]} e6 {[%emt 0:04:24]} 22. Bxf5 {[%emt 0:11:44]} exf5 {[%emt 0:01:15]} 23. Qe3 {[%emt 0:01:00]} Re8 {[%emt 0:05:46]} 24. Qf4 {[%emt 0:05:04]} Qb3 {[%emt 0:00:48]} 25. e6 {[%emt 0:05:57]} dxe6 {[%emt 0:01:56]} 26. Bxg7 {[%emt 0:00:05]} Kxg7 {[%emt 0:00:02]} 27. Qe5+ {[%emt 0:00:26]} Kg8 {[%emt 0:00:29]} 28. d6 {[%emt 0:00:13]} Bd7 {[%emt 0:00:38]} 29. Qf6 {[%emt 0:02:36]} Rac8 {[%emt 0:00:49]} 30. Ne5 {[%emt 0:00:17]} 1-0

[Event "Charlotte IM-B MLK 2022"]
[Site "Charlotte"]
[Date "2022.01.14"]
[Round "1.2"]
[White "Oberoi, Shelev"]
[Black "Amburgy, Ryan"]
[Result "1/2-1/2"]
[ECO "C45"]
[WhiteElo "2268"]
[BlackElo "2135"]
[Annotator "ChessBase"]
[PlyCount "152"]
[EventDate "2022.01.13"]
[EventType "tourn"]
[EventCountry "USA"]
[SourceTitle "playchess.com"]
[Source "ChessBase"]
[SourceQuality "1"]
[TimeControl "5400+30"]

1. e4 {[%emt 0:00:03]} e5 {[%emt 0:00:05]} 2. Nf3 {[%emt 0:00:19]} Nc6 {[%emt 0:00:06]} 3. d4 {[%emt 0:00:11]} exd4 {[%emt 0:00:06]} 4. Nxd4 {[%emt 0:00:18]} Bc5 {[%emt 0:00:06]} 5. Nxc6 {[%emt 0:01:08]} Qf6 {[%emt 1:32:37]} 6. Qf3 {[%emt 0:00:19]} bxc6 {[%emt 0:00:00]} 7. Nd2 {[%emt 0:03:25]} d6 {[%emt 0:00:00]} 8. Bc4 {[%emt 0:05:33]} Qxf3 {[%emt 0:00:00]} 9. gxf3 {[%emt 0:01:16]} Ne7 {[%emt 0:00:00]} 10. a4 {[%emt 0:12:43]} d5 {[%emt 0:00:00]} 11. Bd3 {[%emt 0:04:25]} Rb8 {[%emt 0:00:00]} 12. Nb3 {[%emt 0:02:55]} Bb4+ {[%emt 0:00:00]} 13. Bd2 {[%emt 0:05:59]} O-O {[%emt 0:00:00]} 14. O-O-O {[%emt 0:04:49]} f5 {[%emt 0:00:00]} 15. exd5 {[%emt 0:03:40]} Bxd2+ {[%emt 0:00:00]} 16. Rxd2 {[%emt 0:01:47]} cxd5 {[%emt 0:00:00]} 17. Re1 {[%emt 0:04:42]} Ng6 {[%emt 0:00:00]} 18. Bb5 {[%emt 0:05:07]} Rb6 {[%emt 0:00:00]} 19. Na5 {[%emt 0:07:05]} Rd6 {[%emt 0:00:00]} 20. c4 {[%emt 0:06:38]} dxc4 {[%emt 0:00:00]} 21. Rxd6 {[%emt 0:02:19]} cxd6 {[%emt 0:00:00]} 22. Nxc4 {[%emt 0:01:22]} d5 {[%emt 0:00:00]} 23. Nd6 {[%emt 0:01:43]} Rd8 {[%emt 0:00:00]} 24. Re8+ {[%emt 0:04:47]} Rxe8 {[%emt 0:00:00]} 25. Bxe8 {[%emt 0:00:18]} Ne7 {[%emt 0:00:00]} 26. Bf7+ {[%emt 0:01:14]} Kf8 {[%emt 0:00:00]} 27. Bxd5 {[%emt 0:08:15]} Bd7 {[%emt 0:00:00]} 28. Bb3 {[%emt 0:00:50]} Nc6 {[%emt 0:00:00]} 29. Nb5 {[%emt 0:01:45]} Ke7 {[%emt 0:00:00]} 30. Kd2 {[%emt 0:02:01]} a5 {[%emt 0:00:00]} 31. Ke3 {[%emt 0:02:40]} Ne5 {[%emt 0:00:00]} 32. Nc3 {[%emt 0:01:33]} Kd6 {[%emt 0:00:00]} 33. h3 {[%emt 0:01:03]} Kc5 {[%emt 0:00:00]} 34. Nb1 {[%emt 0:03:45]} Kb4 {[%emt 0:00:00]} 35. Nd2 {[%emt 0:00:04]} Ng6 {[%emt 0:01:02]} 36. f4 {[%emt 0:00:23]} Bxa4 {[%emt 0:00:19]} 37. Be6 {[%emt 0:00:50]} Bc2 {[%emt 0:01:08]} 38. Nf3 {[%emt 0:00:04]} Ne7 {[%emt 0:00:38]} 39. Nd4 {[%emt 0:00:44]} Bb1 {[%emt 0:00:47]} 40. f3 {[%emt 0:00:16]} a4 {[%emt 0:00:21]} 41. Kd2 {[%emt 0:00:40]} g6 {[%emt 0:00:47]} 42. h4 {[%emt 0:00:23]} Kc5 {[%emt 0:00:20]} 43. Ne2 {[%emt 0:00:54]} Nc6 {[%emt 0:01:14]} 44. Bg8 {[%emt 0:00:34]} h6 {[%emt 0:00:47]} 45. Nc3 {[%emt 0:00:28]} Nd4 {[%emt 0:00:00]} 46. Nxb1 {[%emt 0:00:24]} Nxf3+ {[%emt 0:00:01]} 47. Kd3 {[%emt 0:01:19]} Nxh4 {[%emt 0:13:36]} 48. Nc3 {[%emt 0:00:26]} Kb4 {[%emt 0:00:00]} 49. Bd5 {[%emt 0:00:39]} g5 {[%emt 0:00:00]} 50. fxg5 {[%emt 0:00:43]} hxg5 {[%emt 0:00:00]} 51. Be6 {[%emt 0:00:29]} f4 {[%emt 0:00:00]} 52. Ke4 {[%emt 0:00:29]} Ng2 {[%emt 0:00:00]} 53. Bd7 {[%emt 0:00:22]} a3 {[%emt 0:00:00]} 54. Nd5+ {[%emt 0:00:38]} Kb3 {[%emt 0:00:00]} 55. bxa3 {[%emt 0:00:09]} Kxa3 {[%emt 0:04:00]} 56. Nf6 {[%emt 0:00:28]} Ne3 {[%emt 0:00:00]} 57. Nh7 {[%emt 0:00:15]} Kb4 {[%emt 0:00:00]} 58. Nxg5 {[%emt 0:00:07]} Nc4 {[%emt 0:00:00]} 59. Be6 {[%emt 0:00:28]} Kc5 {[%emt 0:00:00]} 60. Nf3 {[%emt 0:00:37]} Nd6+ {[%emt 0:00:00]} 61. Kxf4 {[%emt 0:00:49]} Nc4 {[%emt 0:00:00]} 62. Ng5 {[%emt 0:00:31]} Nd6 {[%emt 0:00:00]} 63. Ke5 {[%emt 0:00:32]} Nc4+ {[%emt 0:00:00]} 64. Ke4 {[%emt 0:00:07]} Nb6 {[%emt 0:00:00]} 65. Kd3 {[%emt 0:00:45]} Kd6 {[%emt 0:05:00]} 66. Kd4 {[%emt 0:00:05]} Nd7 {[%emt 0:00:00]} 67. Bc4 {[%emt 0:01:29]} Ke7 {[%emt 0:00:00]} 68. Ne4 {[%emt 0:00:12]} Nf6 {[%emt 0:00:00]} 69. Ng3 {[%emt 0:00:05]} Nd7 {[%emt 0:00:00]} 70. Bb3 {[%emt 0:00:47]} Kf6 {[%emt 0:00:00]} 71. Ba4 {[%emt 0:00:55]} Ne5 {[%emt 0:00:00]} 72. Kd5 {[%emt 0:00:35]} Ng4 {[%emt 0:00:00]} 73. Bd7 {[%emt 0:00:22]} Ne3+ {[%emt 0:00:00]} 74. Ke4 {[%emt 0:00:52]} Nc4 {[%emt 0:00:00]} 75. Kd5 {[%emt 0:00:26]} Nb6+ {[%emt 0:00:00]} 76. Kc6 {[%emt 0:00:19]} Nxd7 {[%emt 0:00:00]} 1/2-1/2

[Event "Charlotte IM-B MLK 2022"]
[Site "Charlotte"]
[Date "2022.01.14"]
[Round "1.3"]
[White "Chen, Ryo"]
[Black "Shen, Christopher"]
[Result "1/2-1/2"]
[ECO "C77"]
[WhiteElo "2294"]
[BlackElo "2335"]
[Annotator "ChessBase"]
[PlyCount "153"]
[EventDate "2022.01.13"]
[EventType "tourn"]
[EventCountry "USA"]
[SourceTitle "playchess.com"]
[Source "ChessBase"]
[SourceQuality "1"]
[TimeControl "5400+30"]

1. e4 {[%emt 0:00:02]} e5 {[%emt 0:00:12]} 2. Nf3 {[%emt 0:00:11]} Nc6 {[%emt 0:00:09]} 3. Bb5 {[%emt 0:00:16]} a6 {[%emt 0:00:12]} 4. Ba4 {[%emt 0:00:08]} Nf6 {[%emt 0:00:27]} 5. d3 {[%emt 0:00:05]} d6 {[%emt 0:00:21]} 6. c3 {[%emt 0:00:42]} g6 {[%emt 0:00:26]} 7. O-O {[%emt 0:00:30]} Bg7 {[%emt 0:00:21]} 8. Nbd2 {[%emt 0:01:37]} O-O {[%emt 0:00:21]} 9. Re1 {[%emt 0:00:29]} h6 {[%emt 0:00:36]} 10. Nf1 {[%emt 0:00:32]} b5 {[%emt 0:02:37]} 11. Bc2 {[%emt 0:02:45]} d5 {[%emt 0:01:28]} 12. a4 {[%emt 0:13:07]} Be6 {[%emt 0:07:48]} 13. Bd2 {[%emt 0:06:25]} dxe4 {[%emt 0:08:11]} 14. dxe4 {[%emt 0:00:13]} Nh5 {[%emt 0:00:46]} 15. b4 {[%emt 0:15:57]} Nf4 {[%emt 0:05:09]} 16. axb5 {[%emt 0:05:48]} axb5 {[%emt 0:00:51]} 17. Rxa8 {[%emt 0:04:59]} Qxa8 {[%emt 0:00:10]} 18. g3 {[%emt 0:00:47]} Nh5 {[%emt 0:07:01]} 19. Bd3 {[%emt 0:02:54]} Qb7 {[%emt 0:03:49]} 20. Qe2 {[%emt 0:02:27]} Na7 {[%emt 0:02:56]} 21. Be3 {[%emt 0:07:34]} c6 {[%emt 0:01:49]} 22. c4 {[%emt 0:05:24]} bxc4 {[%emt 0:08:00]} 23. Bxc4 {[%emt 0:00:47]} Re8 {[%emt 0:04:40]} 24. Bxe6 {[%emt 0:05:47]} Rxe6 {[%emt 0:00:32]} 25. Qd2 {[%emt 0:02:22]} Nb5 {[%emt 0:12:34]} 26. Bc5 {[%emt 0:07:15]} Nf6 {[%emt 0:04:58]} 27. Rd1 {[%emt 0:05:47]} Kh7 {[%emt 0:11:25]} 28. Qd3 {[%emt 0:00:44]} Qa6 {[%emt 0:03:36]} 29. Ne3 {[%emt 0:02:41]} Qa3 {[%emt 0:02:19]} 30. Qxa3 Nxa3 {[%emt 0:00:03]} 31. Nd2 {[%emt 0:03:25]} Nb5 {[%emt 0:01:01]} 32. f3 {[%emt 0:01:08]} Nc3 {[%emt 0:03:03]} 33. Ra1 {[%emt 0:00:39]} Nd7 {[%emt 0:00:58]} 34. Ra3 {[%emt 0:01:50]} Nb5 {[%emt 0:01:00]} 35. Rd3 {[%emt 0:01:18]} Nxc5 {[%emt 0:00:43]} 36. bxc5 {[%emt 0:00:02]} Bf8 {[%emt 0:01:29]} 37. Nb3 {[%emt 0:00:16]} Nd4 {[%emt 0:00:35]} 38. Nxd4 {[%emt 0:01:01]} exd4 {[%emt 0:00:02]} 39. Rxd4 {[%emt 0:01:07]} Bxc5 {[%emt 0:00:06]} 40. Rd3 {[%emt 0:00:05]} f5 {[%emt 0:01:48]} 41. Rd7+ {[%emt 0:01:11]} Kg8 {[%emt 0:00:40]} 42. Kf2 {[%emt 0:00:15]} g5 {[%emt 0:01:13]} 43. Ke2 {[%emt 0:00:38]} fxe4 {[%emt 0:00:57]} 44. Nf5 {[%emt 0:00:19]} exf3+ {[%emt 0:00:34]} 45. Kxf3 {[%emt 0:00:03]} Bf8 {[%emt 0:00:24]} 46. g4 {[%emt 0:01:03]} c5 {[%emt 0:00:22]} 47. Rc7 {[%emt 0:00:13]} Rb6 {[%emt 0:00:50]} 48. h4 {[%emt 0:00:36]} Rb3+ {[%emt 0:00:40]} 49. Ke4 {[%emt 0:00:28]} Rb4+ {[%emt 0:00:12]} 50. Kf3 {[%emt 0:00:43]} Rf4+ {[%emt 0:00:14]} 51. Ke2 {[%emt 0:00:43]} gxh4 {[%emt 0:01:01]} 52. Nxh4 {[%emt 0:00:23]} Rxg4 {[%emt 0:00:07]} 53. Nf5 {[%emt 0:00:25]} Rg5 {[%emt 0:00:41]} 54. Nh4 {[%emt 0:00:40]} h5 {[%emt 0:01:39]} 55. Kf3 {[%emt 0:00:24]} Bd6 {[%emt 0:00:50]} 56. Rc6 {[%emt 0:00:36]} Bg3 {[%emt 0:01:15]} 57. Ng2 {[%emt 0:01:14]} h4 {[%emt 0:00:35]} 58. Ne3 {[%emt 0:00:30]} h3 {[%emt 0:00:50]} 59. Rh6 {[%emt 0:00:00]} h2 {[%emt 0:00:34]} 60. Nf1 {[%emt 0:00:12]} Be5 {[%emt 0:01:15]} 61. Nxh2 {[%emt 0:00:15]} Kg7 {[%emt 0:00:45]} 62. Rh4 {[%emt 0:00:44]} Kf7 {[%emt 0:00:41]} 63. Ng4 {[%emt 0:00:21]} Bd4 {[%emt 0:00:18]} 64. Ne3 {[%emt 0:00:44]} Ke6 {[%emt 0:00:34]} 65. Nc2 {[%emt 0:00:30]} Be5 {[%emt 0:00:27]} 66. Rh6+ {[%emt 0:00:30]} Kd5 {[%emt 0:00:29]} 67. Rh4 {[%emt 0:00:25]} Rg3+ {[%emt 0:00:39]} 68. Ke2 {[%emt 0:00:14]} Rb3 {[%emt 0:00:28]} 69. Ne3+ {[%emt 0:00:32]} Kc6 {[%emt 0:00:20]} 70. Re4 {[%emt 0:00:18]} Bd4 {[%emt 0:00:20]} 71. Nc2 {[%emt 0:00:22]} Kd5 {[%emt 0:00:44]} 72. Nxd4 {[%emt 0:00:28]} cxd4 {[%emt 0:00:31]} 73. Re8 {[%emt 0:00:09]} Rc3 {[%emt 0:00:28]} 74. Rd8+ {[%emt 0:00:22]} Kc4 {[%emt 0:00:05]} 75. Rc8+ {[%emt 0:00:22]} Kb3 {[%emt 0:00:06]} 76. Rd8 {[%emt 0:00:07]} d3+ {[%emt 0:00:41]} 77. Rxd3 {[%emt 0:00:03]} 1/2-1/2

[Event "Charlotte IM-B MLK 2022"]
[Site "Charlotte"]
[Date "2022.01.15"]
[Round "4.1"]
[White "Lima Martinez, Alejandro"]
[Black "Matros, Alexander"]
[Result "1/2-1/2"]
[ECO "A26"]
[WhiteElo "2078"]
[BlackElo "2361"]
[Annotator "ChessBase"]
[PlyCount "33"]
[EventDate "2022.01.13"]
[EventType "tourn"]
[EventCountry "USA"]
[SourceTitle "playchess.com"]
[Source "ChessBase"]
[SourceQuality "1"]
[TimeControl "5400+30"]

1. c4 {[%emt 0:00:02]} Nf6 {[%emt 0:00:54]} 2. Nc3 {[%emt 0:00:06]} g6 {[%emt 0:00:12]} 3. g3 {[%emt 0:00:05]} Bg7 {[%emt 0:00:11]} 4. Bg2 {[%emt 0:00:02]} O-O {[%emt 0:00:18]} 5. e4 {[%emt 0:00:04]} d6 {[%emt 0:01:14]} 6. Nge2 {[%emt 0:00:10]} e5 {[%emt 0:02:34]} 7. O-O {[%emt 0:00:08]} Nc6 {[%emt 0:02:38]} 8. d3 {[%emt 0:00:18]} a6 {[%emt 0:07:06]} 9. h3 {[%emt 0:02:38]} Nd4 {[%emt 0:05:00]} 10. f4 {[%emt 0:10:20]} Rb8 {[%emt 0:02:50]} 11. a4 {[%emt 0:06:15]} Nd7 {[%emt 0:13:29]} 12. Rb1 {[%emt 0:09:31]} a5 {[%emt 0:04:07]} 13. f5 {[%emt 0:11:57]} Nc5 {[%emt 0:01:53]} 14. g4 {[%emt 0:07:05]} c6 {[%emt 0:00:23]} 15. Be3 {[%emt 0:02:29]} Bd7 {[%emt 0:02:19]} 16. Ng3 {[%emt 0:03:55]} Bf6 {[%emt 0:16:11]} 17. Nce2 {[%emt 0:05:17]} 1/2-1/2

[Event "Charlotte IM-B MLK 2022"]
[Site "Charlotte"]
[Date "2022.01.15"]
[Round "4.3"]
[White "Amburgy, Ryan"]
[Black "Kanli, Alperen"]
[Result "0-1"]
[ECO "D27"]
[WhiteElo "2135"]
[BlackElo "2055"]
[Annotator "ChessBase"]
[PlyCount "102"]
[EventDate "2022.01.13"]
[EventType "tourn"]
[EventCountry "USA"]
[SourceTitle "playchess.com"]
[Source "ChessBase"]
[SourceQuality "1"]
[TimeControl "5400+30"]

1. Nf3 {[%emt 0:00:02]} d5 {[%emt 0:00:21]} 2. e3 {[%emt 0:00:05]} Nf6 {[%emt 0:00:17]} 3. c4 {[%emt 0:00:06]} dxc4 {[%emt 0:00:12]} 4. Bxc4 {[%emt 0:00:15]} e6 {[%emt 0:00:15]} 5. O-O {[%emt 0:00:48]} a6 {[%emt 0:00:10]} 6. b3 {[%emt 0:03:01]} b5 {[%emt 0:00:18]} 7. Be2 {[%emt 0:00:01]} Bb7 {[%emt 0:00:26]} 8. Bb2 {[%emt 0:00:58]} Nbd7 {[%emt 0:00:14]} 9. a4 {[%emt 0:02:57]} b4 {[%emt 0:00:14]} 10. d4 {[%emt 0:01:15]} c5 {[%emt 0:00:12]} 11. Nbd2 {[%emt 0:00:14]} Be7 {[%emt 0:00:02]} 12. Rc1 {[%emt 0:02:38]} Rc8 {[%emt 0:03:16]} 13. Bd3 {[%emt 0:02:48]} cxd4 {[%emt 0:05:09]} 14. Rxc8 {[%emt 0:04:43]} Qxc8 {[%emt 0:00:30]} 15. Bxd4 {[%emt 0:00:10]} O-O {[%emt 0:04:29]} 16. Nc4 {[%emt 0:18:52]} Rd8 {[%emt 0:02:43]} 17. Qe2 {[%emt 0:08:15]} Nc5 {[%emt 0:03:06]} 18. Bc2 {[%emt 0:01:08]} Nfe4 {[%emt 0:04:48]} 19. Nfe5 {[%emt 0:06:11]} f6 {[%emt 0:03:24]} 20. Nb6 {[%emt 0:00:57]} Qc7 {[%emt 0:01:50]} 21. Nec4 {[%emt 0:00:07]} e5 {[%emt 0:12:57]} 22. Bb2 {[%emt 0:00:28]} Nc3 {[%emt 0:00:17]} 23. Bxc3 {[%emt 0:06:57]} bxc3 {[%emt 0:00:13]} 24. b4 {[%emt 0:00:23]} Ne4 {[%emt 0:57:07]} 25. Qg4 {[%emt 0:05:33]} Nd2 {[%emt 0:00:00]} 26. Rd1 {[%emt 0:03:15]} e4 {[%emt 0:00:00]} 27. Qe6+ {[%emt 0:06:04]} Kh8 {[%emt 0:00:00]} 28. Na5 {[%emt 0:01:40]} Bxb4 {[%emt 0:00:00]} 29. Nxb7 {[%emt 0:00:51]} Qxb7 {[%emt 0:00:00]} 30. Nc4 {[%emt 0:03:10]} Qc8 {[%emt 0:00:00]} 31. Qxc8 {[%emt 0:05:14]} Rxc8 {[%emt 0:00:00]} 32. Nxd2 {[%emt 0:17:24]} cxd2 {[%emt 0:00:00]} 33. Bxe4 {[%emt 0:00:00]} Rc1 {[%emt 0:00:00]} 34. Bf3 {[%emt 0:00:00]} Kg8 {[%emt 0:00:00]} 35. Kf1 {[%emt 0:00:00]} Kf7 {[%emt 0:00:00]} 36. Bd5+ {[%emt 0:00:00]} Ke7 {[%emt 0:00:00]} 37. Ke2 {[%emt 0:00:00]} Kd6 {[%emt 0:00:00]} 38. Bb7 {[%emt 0:00:00]} a5 {[%emt 0:00:00]} 39. Be4 {[%emt 0:00:00]} g6 {[%emt 0:00:00]} 40. Bd3 {[%emt 0:00:00]} Bc3 {[%emt 0:00:00]} 41. h4 {[%emt 0:00:00]} Kc5 {[%emt 0:00:00]} 42. g4 {[%emt 0:00:00]} Kb4 {[%emt 0:00:00]} 43. Bb5 {[%emt 0:00:00]} Kc5 {[%emt 0:09:30]} 44. Be8 {[%emt 0:00:00]} Kd5 {[%emt 0:00:00]} 45. Bf7+ {[%emt 0:00:00]} Ke5 {[%emt 0:00:00]} 46. f4+ {[%emt 0:00:00]} Ke4 {[%emt 0:00:00]} 47. Be8 {[%emt 0:00:00]} Bb4 {[%emt 0:00:00]} 48. f5 {[%emt 0:00:00]} gxf5 {[%emt 0:00:00]} 49. gxf5 {[%emt 0:08:30]} Rc3 {[%emt 0:00:00]} 50. Rf1 {[%emt 0:00:00]} Rxe3+ {[%emt 0:00:00]} 51. Kf2 {[%emt 0:00:00]} Rf3+ {[%emt 0:00:00]} 0-1

[Event "Charlotte IM-B MLK 2022"]
[Site "Charlotte"]
[Date "2022.01.15"]
[Round "4.5"]
[White "Oberoi, Shelev"]
[Black "Chen, Ryo"]
[Result "0-1"]
[ECO "B06"]
[WhiteElo "2268"]
[BlackElo "2294"]
[Annotator "ChessBase"]
[PlyCount "120"]
[EventDate "2022.01.13"]
[EventType "tourn"]
[EventCountry "USA"]
[SourceTitle "playchess.com"]
[Source "ChessBase"]
[SourceQuality "1"]
[TimeControl "5400+30"]

1. e4 {[%emt 0:00:01]} c5 {[%emt 0:00:01]} 2. c3 {[%emt 0:00:21]} d5 {[%emt 0:00:03]} 3. exd5 {[%emt 0:00:13]} Qxd5 {[%emt 0:00:11]} 4. d4 {[%emt 0:00:25]} g6 {[%emt 0:00:02]} 5. Nf3 {[%emt 0:01:58]} Bg7 {[%emt 0:00:01]} 6. Na3 {[%emt 0:01:16]} cxd4 {[%emt 0:00:16]} 7. Nb5 {[%emt 0:00:16]} Na6 {[%emt 0:00:13]} 8. Nbxd4 {[%emt 0:00:18]} Nf6 {[%emt 0:00:23]} 9. Bb5+ {[%emt 0:00:23]} Bd7 {[%emt 0:00:16]} 10. Bxa6 {[%emt 0:00:23]} bxa6 {[%emt 0:00:01]} 11. O-O {[%emt 0:00:33]} e6 {[%emt 0:20:27]} 12. Re1 {[%emt 0:10:58]} O-O {[%emt 0:02:43]} 13. Ne5 {[%emt 0:03:48]} Rfc8 {[%emt 0:06:19]} 14. h3 {[%emt 0:13:27]} Qb7 {[%emt 0:18:38]} 15. Bg5 {[%emt 0:11:24]} Be8 {[%emt 0:10:43]} 16. Qe2 {[%emt 0:11:05]} Nd7 {[%emt 0:07:31]} 17. Nef3 {[%emt 0:05:20]} e5 {[%emt 0:03:37]} 18. Nb3 {[%emt 0:00:59]} f6 {[%emt 0:01:41]} 19. Be3 {[%emt 0:00:47]} Qb5 {[%emt 0:03:36]} 20. Rad1 {[%emt 0:06:45]} Nb6 {[%emt 0:04:06]} 21. Qxb5 {[%emt 0:30:20]} Bxb5 {[%emt 0:02:20]} 22. Na5 {[%emt 0:00:00]} Bf8 {[%emt 0:02:15]} 23. Rd2 {[%emt 0:00:00]} Nc4 {[%emt 0:01:24]} 24. Nxc4 {[%emt 0:00:00]} Bxc4 {[%emt 0:15:43]} 25. g4 {[%emt 0:00:00]} g5 {[%emt 0:00:00]} 26. Ra1 {[%emt 0:00:00]} Be6 {[%emt 0:00:00]} 27. Nh2 {[%emt 0:00:00]} h5 {[%emt 0:00:00]} 28. f3 {[%emt 0:00:00]} h4 {[%emt 0:00:00]} 29. Nf1 {[%emt 0:00:00]} a5 {[%emt 0:00:00]} 30. Rd3 {[%emt 0:00:00]} Rab8 {[%emt 0:00:00]} 31. b3 {[%emt 0:00:00]} a4 {[%emt 0:00:00]} 32. c4 {[%emt 0:00:00]} Bc5 {[%emt 0:00:00]} 33. Bxc5 {[%emt 0:00:00]} Rxc5 {[%emt 0:00:00]} 34. Rd6 {[%emt 0:00:00]} Kf7 {[%emt 0:00:51]} 35. Nd2 {[%emt 0:00:00]} Rc7 {[%emt 0:00:45]} 36. Kf2 {[%emt 0:00:00]} Ke7 {[%emt 0:04:24]} 37. Ra6 {[%emt 0:00:22]} Bd7 {[%emt 0:00:00]} 38. Ke3 {[%emt 0:01:26]} Bc6 {[%emt 0:00:00]} 39. Rc1 {[%emt 0:02:10]} Rd8 {[%emt 0:01:30]} 40. Rc2 {[%emt 0:01:07]} Rd6 {[%emt 0:00:00]} 41. Nb1 {[%emt 0:03:17]} Be4 {[%emt 0:00:00]} 42. fxe4 {[%emt 0:01:16]} axb3 {[%emt 0:00:17]} 43. axb3 {[%emt 0:00:22]} Rxa6 {[%emt 0:00:07]} 44. Nc3 {[%emt 0:00:02]} Rb7 {[%emt 0:00:44]} 45. Nd5+ {[%emt 0:00:59]} Kd7 {[%emt 0:00:47]} 46. Rc3 {[%emt 0:00:46]} Ra3 {[%emt 0:00:22]} 47. Nxf6+ {[%emt 0:00:35]} Ke6 {[%emt 0:00:13]} 48. Nd5 {[%emt 0:00:31]} Rbxb3 {[%emt 0:00:06]} 49. Rxb3 {[%emt 0:00:27]} Rxb3+ {[%emt 0:00:01]} 50. Kf2 {[%emt 0:00:01]} a5 {[%emt 0:00:33]} 51. c5 {[%emt 0:00:10]} Kd7 {[%emt 0:00:10]} 52. Ne3 {[%emt 0:00:40]} Rxe3 {[%emt 0:00:27]} 53. Kxe3 {[%emt 0:00:25]} Kc6 {[%emt 0:00:01]} 54. Ke2 {[%emt 0:00:40]} Kxc5 {[%emt 0:00:07]} 55. Kd3 {[%emt 0:00:04]} Kb4 {[%emt 0:00:10]} 56. Kc2 {[%emt 0:00:06]} Kc4 {[%emt 0:00:09]} 57. Kb2 {[%emt 0:00:07]} Kd4 {[%emt 0:00:05]} 58. Ka3 {[%emt 0:00:04]} Kxe4 {[%emt 0:05:11]} 59. Ka4 {[%emt 0:00:04]} Kd3 {[%emt 0:00:00]} 60. Kxa5 {[%emt 0:00:08]} e4 {[%emt 0:00:00]} 0-1

[Event "Charlotte IM-B MLK 2022"]
[Site "Charlotte"]
[Date "2022.01.17"]
[Round "7.5"]
[White "Shen, Christopher"]
[Black "Amburgy, Ryan"]
[Result "1-0"]
[ECO "E00"]
[WhiteElo "2335"]
[BlackElo "2135"]
[Annotator "RC"]
[PlyCount "77"]
[EventDate "2022.01.13"]
[EventType "tourn"]
[EventCountry "USA"]
[SourceTitle "playchess.com"]
[Source "ChessBase"]
[SourceQuality "1"]
[TimeControl "5400+30"]

1. d4 {[%emt 0:00:03]} Nf6 {[%emt 0:00:18]} 2. c4 {[%emt 0:00:06]} e6 {[%emt 0:00:05]} 3. Bg5 {[%emt 0:00:04]} Bb4+ {[%emt 0:00:52]} 4. Nd2 {[%emt 0:00:33]} h6 {[%emt 0:00:53]} 5. Bh4 {[%emt 0:00:58]} b6 {[%emt 0:02:12]} 6. a3 {[%emt 0:02:25]} Bxd2+ {[%emt 0:00:41]} 7. Qxd2 {[%emt 0:00:06]} Bb7 {[%emt 0:00:29]} 8. Nf3 {[%emt 0:01:28]} d5 {[%emt 0:02:17]} 9. cxd5 {[%emt 0:01:31]} Bxd5 {[%emt 0:00:52]} 10. e3 {[%emt 0:01:41]} Nbd7 {[%emt 1:26:51]} 11. Bd3 {[%emt 0:04:43]} O-O {[%emt 0:00:00]} 12. Qe2 {[%emt 0:02:19]} g5 {[%emt 0:00:00]} 13. Bg3 {[%emt 0:03:36]} Be4 {[%emt 0:00:00]} 14. O-O {[%emt 0:04:51]} Bxd3 {[%emt 0:00:00]} 15. Qxd3 {[%emt 0:00:39]} Nh5 {[%emt 0:00:00]} 16. Rac1 {[%emt 0:04:58]} Nxg3 {[%emt 0:00:00]} 17. hxg3 {[%emt 0:00:44]} c5 {[%emt 0:00:00]} 18. Rfd1 {[%emt 0:08:09]} Qe7 {[%emt 0:00:00]} 19. dxc5 {[%emt 0:08:29]} Nxc5 {[%emt 0:00:00]} 20. Qc2 {[%emt 0:00:53]} Qb7 {[%emt 0:00:00]} 21. Rd4 {[%emt 0:07:13]} Rac8 {[%emt 0:00:00]} 22. Rc4 {[%emt 0:02:37]} Rcd8 {[%emt 0:00:00]} 23. b4 {[%emt 0:01:40]} Na6 {[%emt 0:00:00]} 24. Ne5 {[%emt 0:04:18]} Rd5 {[%emt 0:00:00]} 25. Ng4 {[%emt 0:05:14]} Kg7 {[%emt 0:00:00]} 26. e4 {[%emt 0:01:44]} Rdd8 {[%emt 0:00:00]} 27. Qc3+ {[%emt 0:08:49]} f6 {[%emt 0:00:00]} 28. e5 {[%emt 0:00:23]} f5 {[%emt 0:00:00]} 29. Nf6 {[%emt 0:00:07]} Qe7 {[%emt 0:00:00]} 30. Rc6 {[%emt 0:02:26]} Qb7 {[%emt 0:00:00]} 31. Rxe6 {[%emt 0:02:39]} Rc8 {[%emt 0:00:00]} 32. Qe3 {[%emt 0:01:04]} Rfd8 {[%emt 0:00:00]} 33. Rxc8 {[%emt 0:01:54]} Qxc8 {[%emt 0:00:00]} 34. Re7+ {[%emt 0:00:24]} Kg6 {[%emt 0:00:00]} 35. Qb3 {[%emt 0:01:00]} Rf8 {[%emt 0:00:00]} 36. Nd7 {[%emt 0:00:19]} g4 {[%emt 0:00:00]} 37. Nxf8+ {[%emt 0:00:25]} Qxf8 {[%emt 0:00:00]} 38. Qe6+ {[%emt 0:00:09]} Kg5 {[%emt 0:00:00]} 39. Rf7 {[%emt 0:00:15]} 1-0